bitfinex-derivatives/quotes_SOLF0:USTF0_20250216
["timestamp","ask_amount","ask_price","bid_price","bid_amount"]
[1739678683653,0.03619779,194.8,194.76,0.03708638]
[1739678684145,5.1329,194.79,194.76,0.03708638]
[1739678684345,0.03619779,194.8,194.76,0.03708638]
[1739678684546,0.03619779,194.8,194.77,9.15240866]
[1739678684944,0.03619779,194.8,194.79,9.15240866]
[1739678685751,0.03619779,194.8,194.79,14.28530866]
[1739678687148,9.15240866,194.88,194.79,9.15240866]
[1739678687348,9.15240866,194.88,194.83,9.15240866]
[1739678687553,5.1303,194.89,194.83,9.15240866]
[1739678687749,5.1303,194.89,194.83,14.28420866]
[1739678687954,9.15240866,194.94,194.87,9.15240866]
[1739678688457,0.03684068,194.92,194.89,9.1854979]
[1739678688748,9.15240866,194.96,194.91,9.15240866]
[1739678688954,0.03659043,194.92,194.91,9.15240866]
[1739678690447,141.93617588,194.97,194.91,9.15240866]
[1739678690651,141.93617588,194.97,194.93,9.15240866]
[1739678690952,5.128,194.98,194.93,9.15240866]
[1739678691159,9.15240866,195.0,194.93,9.15240866]
[1739678691460,9.15240866,195.02,194.95,9.15240866]
[1739678691757,9.15240866,195.02,194.95,9.18852623]
[1739678692057,9.15240866,195.0,194.95,9.18852623]
[1739678692355,9.15240866,195.0,194.95,0.03611757]
[1739678692751,9.15240866,195.02,194.97,9.15240866]
[1739678693147,5.1279,194.98,194.95,9.18852623]
[1739678694858,5.1282,194.97,194.95,9.18852623]
[1739678696957,5.1284,194.96,194.95,9.18852623]
[1739678699061,5.1284,194.96,194.95,0.03611757]
[1739678699963,14.28080866,194.96,194.95,0.03611757]
[1739678700261,9.15240866,194.96,194.87,9.15240866]
[1739678700461,9.15240866,194.93,194.87,9.15240866]
[1739678701064,9.15240866,194.91,194.85,9.15240866]
[1739678701267,9.15240866,194.91,194.88,0.03577517]
[1739678701461,14.28270866,194.89,194.88,7.517e-05]
[1739678701660,9.15240866,194.91,194.85,9.15240866]
[1739678702062,9.15240866,194.93,194.85,9.15240866]
[1739678702366,5.1308,194.87,194.85,9.15240866]
[1739678702666,5.1292,194.93,194.87,5.1308]
[1739678702865,1.5487,194.96,194.91,9.15240866]
[1739678703059,9.15240866,194.99,194.93,9.15240866]
[1739678703258,5.129,194.94,194.93,9.15240866]
[1739678703457,0.03822532,194.95,194.92,0.03686719]
[1739678703658,9.19063398,194.95,194.92,0.03686719]
[1739678703966,5.1292,194.93,194.92,0.03686719]
[1739678711759,5.16702532,194.95,194.92,0.03686719]
[1739678712365,5.16702532,194.95,194.93,9.15240866]
[1739678713069,5.129,194.94,194.93,9.15240866]
[1739678713265,0.03822532,194.95,194.93,9.15240866]
[1739678713972,0.03822532,194.95,194.93,14.28150866]
[1739678714367,0.03822532,194.95,194.94,5.129]
[1739678715871,5.1277,194.99,194.93,9.15240866]
[1739678715872,5.1277,194.99,194.95,5.1286]
[1739678716071,5.1277,194.99,194.97,9.15240866]
[1739678716369,5.1274,195.0,194.97,9.15240866]
[1739678716570,9.15240866,195.03,194.97,9.15240866]
[1739678716972,5.1274,195.0,194.98,0.03774963]
[1739678717364,0.03729387,195.02,194.98,0.03774963]
[1739678718576,5.1272,195.01,194.98,0.03774963]
[1739678719175,5.1272,195.01,194.99,9.15240866]
[1739678720374,5.1274,195.0,194.99,9.15240866]
[1739678721874,0.03729387,195.02,194.98,0.03774963]
[1739678722079,5.1277,194.99,194.98,0.03774963]
[1739678723574,14.28010866,194.99,194.98,0.03774963]
[1739678725676,14.28010866,194.99,194.98,4.963e-05]
[1739678732481,5.13,194.9,194.87,12.35400866]
[1739678732783,9.15240866,194.94,194.87,12.35400866]
[1739678733779,5.1305,194.89,194.87,12.35400866]
[1739678734374,5.1305,194.89,194.87,9.15240866]
[1739678737381,5.1306,194.88,194.87,9.15240866]
[1739678741490,5.1306,194.88,194.86,1.57917053]
[1739678742789,5.1306,194.88,194.86,0.03267053]
[1739678743089,5.1308,194.87,194.86,0.03267053]
[1739678743887,5.1302,194.9,194.86,0.03267053]
[1739678744093,9.18921957,194.92,194.86,0.03267053]
[1739678744795,0.03681091,194.92,194.87,9.15240866]
[1739678745598,5.1298,194.91,194.87,9.15240866]
[1739678749494,0.03681091,194.92,194.89,9.15240866]
[1739678750294,5.16651091,194.92,194.89,9.15240866]
[1739678750495,5.16651091,194.92,194.87,14.28320866]
[1739678751093,0.03681091,194.92,194.87,9.15240866]
[1739678751300,5.13,194.91,194.87,9.15240866]
[1739678751500,0.03681091,194.92,194.87,9.15240866]
[1739678752199,0.03681091,194.92,194.88,5.1305]
[1739678754202,0.03681091,194.92,194.87,9.15240866]
[1739678754406,0.03681091,194.92,194.89,5.1302]
[1739678754897,0.03681091,194.92,194.87,9.15240866]
[1739678755097,0.03681091,194.92,194.88,5.1306]
[1739678756202,0.03681091,194.92,194.87,9.15240866]
[1739678756402,5.16641091,194.92,194.87,14.28320866]
[1739678756602,5.16641091,194.92,194.87,9.15240866]
[1739678757104,0.03681091,194.92,194.88,5.1303]
[1739678759101,5.16641091,194.92,194.88,5.1303]
[1739678760103,0.03681091,194.92,194.87,9.15240866]
[1739678760303,0.03681091,194.92,194.89,5.1303]
[1739678760503,0.03681091,194.92,194.87,9.15240866]
[1739678761108,0.03681091,194.92,194.86,0.03267053]
[1739678761409,0.03681091,194.92,194.87,9.15240866]
[1739678761607,5.1298,194.91,194.87,9.15240866]
[1739678762203,0.03681091,194.92,194.89,14.28250866]
[1739678762507,0.03681091,194.92,194.91,9.15240866]
[1739678763406,0.03681091,194.92,194.91,14.28220866]
[1739678764309,0.03681091,194.92,194.91,9.15240866]
[1739678766011,0.03681091,194.92,194.91,14.28220866]
[1739678772111,5.128,194.98,194.94,5.1288]
[1739678772317,9.15240866,195.0,194.94,9.15240866]
[1739678773216,0.03386994,194.99,194.95,5.1637835]
[1739678773914,0.03386994,194.99,194.95,0.0351835]
[1739678774115,0.03386994,194.99,194.96,5.1284]
[1739678774323,0.03386994,194.99,194.96,9.15240866]
[1739678774825,0.03386994,194.99,194.96,14.28060866]
[1739678775516,0.03386994,194.99,194.96,9.15240866]
[1739678775716,0.03386994,194.99,194.97,5.1281]
[1739678776016,0.03386994,194.99,194.96,9.15240866]
[1739678776215,0.03386994,194.99,194.96,14.28090866]
[1739678778212,0.03386994,194.99,194.95,0.0351835]
[1739678778417,9.15240866,194.98,194.95,0.0351835]
[1739678779617,5.16156994,194.99,194.95,0.0351835]
[1739678779816,0.03386994,194.99,194.95,0.0351835]
[1739678780220,5.16166994,194.99,194.95,0.0351835]
[1739678780819,5.128,194.98,194.95,0.0351835]
[1739678785221,0.03386994,194.99,194.95,0.0351835]
[1739678785423,5.1285,194.96,194.95,0.0351835]
[1739678790024,14.28090866,194.96,194.95,0.0351835]
[1739678791225,5.1285,194.96,194.95,0.0351835]
[1739678794727,14.28090866,194.96,194.95,0.0351835]
[1739678794924,9.15240866,194.96,194.86,9.15240866]
[1739678795126,9.15240866,194.92,194.86,9.15240866]
[1739678795321,9.15240866,194.92,194.86,14.28330866]
[1739678796032,5.16531898,194.91,194.87,0.03748362]
[1739678796221,0.03531898,194.91,194.87,0.03748362]
[1739678796930,0.03531898,194.91,194.87,5.16818362]
[1739678797127,0.03531898,194.91,194.88,9.15240866]
[1739678797724,0.03531898,194.91,194.9,9.15240866]
[1739678797926,9.15240866,194.98,194.9,9.15240866]
[1739678798127,5.1284,194.97,194.93,9.15240866]
[1739678798527,9.15240866,194.98,194.93,9.15240866]
[1739678799031,0.03588434,194.97,194.94,0.03315226]
[1739678800131,5.1286,194.96,194.94,0.03315226]
[1739678800332,0.03588434,194.97,194.94,0.03315226]
[1739678800633,5.16428434,194.97,194.94,0.03315226]
[1739678801132,0.03588434,194.97,194.94,0.03315226]
[1739678801333,0.03588434,194.97,194.95,9.15240866]
[1739678802933,0.03588434,194.97,194.95,14.28100866]
[1739678804432,0.03588434,194.97,194.95,9.15240866]
[1739678806334,0.03588434,194.97,194.94,5.16205226]
[1739678806731,0.03588434,194.97,194.94,0.03315226]
[1739678806933,0.03588434,194.97,194.95,5.1287]
[1739678809136,0.03588434,194.97,194.96,5.1285]
[1739678810929,0.03588434,194.97,194.94,0.03315226]
[1739678811133,9.15240866,194.95,194.94,0.03315226]
[1739678811530,9.188293,194.97,194.94,0.03315226]
[1739678812635,9.15240866,194.95,194.94,0.03315226]
[1739678812835,14.28110866,194.95,194.94,0.03315226]
[1739678813142,9.15240866,194.95,194.87,9.15240866]
[1739678813339,9.15240866,194.92,194.87,9.15240866]
[1739678813730,9.15240866,194.94,194.87,9.15240866]
[1739678813935,9.15240866,194.94,194.89,9.15240866]
[1739678814142,9.15240866,194.96,194.89,9.15240866]
[1739678814440,9.15240866,194.96,194.9,0.03501967]
[1739678814441,0.03741541,194.93,194.9,0.03501967]
[1739678815142,14.28220866,194.91,194.9,0.03501967]
[1739678815437,5.1298,194.91,194.9,0.03501967]
[1739678815637,9.18982407,194.93,194.9,0.03501967]
[1739678815841,0.03741541,194.93,194.9,0.03501967]
[1739678816237,0.03741541,194.93,194.9,9.18742833]
[1739678816433,0.03741541,194.93,194.92,9.15240866]
[1739678816935,0.03741541,194.93,194.92,14.28190866]
[1739678823445,0.03741541,194.93,194.92,9.15240866]
[1739678825746,0.03741541,194.93,194.9,9.18742833]
[1739678825945,0.03741541,194.93,194.9,14.31742833]
[1739678826248,0.03741541,194.93,194.9,9.18742833]
[1739678827042,0.03741541,194.93,194.91,5.1297]
[1739678827245,0.03741541,194.93,194.9,9.18742833]
[1739678827446,0.03741541,194.93,194.9,0.03501967]
[1739678827849,9.15240866,194.91,194.9,0.03501967]
[1739678829045,14.28220866,194.91,194.9,0.03501967]
[1739678833649,9.15240866,194.91,194.9,0.03501967]
[1739678833847,0.03741541,194.93,194.9,0.03501967]
[1739678833848,14.31932407,194.93,194.9,0.03501967]
[1739678835345,5.16691541,194.93,194.9,0.03501967]
[1739678837546,0.03741541,194.93,194.9,5.16501967]
[1739678837746,9.18982407,194.93,194.9,0.03501967]
[1739678839146,9.15240866,194.91,194.9,0.03501967]
[1739678839542,14.28220866,194.91,194.9,0.03501967]
[1739678839950,9.18982407,194.93,194.9,0.03501967]
[1739678840150,5.1295,194.92,194.9,0.03501967]
[1739678843756,9.18982407,194.93,194.9,0.03501967]
[1739678843954,5.1298,194.91,194.9,0.03501967]
[1739678849166,5.1297,194.92,194.9,0.03501967]
[1739678849361,9.18982407,194.93,194.9,0.03501967]
[1739678849858,5.1298,194.91,194.9,0.03501967]
[1739678850364,14.31912407,194.93,194.9,0.03501967]
[1739678850564,5.16671541,194.93,194.9,0.03501967]
[1739678850968,0.03741541,194.93,194.9,5.16491967]
[1739678853271,0.03741541,194.93,194.9,9.18742833]
[1739678853472,0.03741541,194.93,194.92,9.15240866]
[1739678853872,0.03741541,194.93,194.92,14.28190866]
[1739678855869,0.03741541,194.93,194.9,9.18742833]
[1739678856970,0.03741541,194.93,194.9,14.31742833]
[1739678858065,0.03741541,194.93,194.91,5.1297]
[1739678858268,0.03741541,194.93,194.9,9.18742833]
[1739678861173,0.03741541,194.93,194.91,5.1297]
[1739678863371,0.03741541,194.93,194.92,5.1295]
[1739678863569,0.03741541,194.93,194.92,14.28190866]
[1739678870570,14.46224866,195.01,194.96,5.1283]
[1739678871672,0.03372043,195.0,194.97,0.0335485]
[1739678874178,0.03372043,195.0,194.97,5.1617485]
[1739678874478,0.03372043,195.0,194.97,0.0335485]
[1739678874674,5.16112043,195.0,194.97,0.0335485]
[1739678875776,0.03372043,195.0,194.97,0.0335485]
[1739678875976,5.16142043,195.0,194.97,0.0335485]
[1739678876176,0.03372043,195.0,194.97,0.0335485]
[1739678876580,0.03372043,195.0,194.98,5.1279]
[1739678876980,0.03372043,195.0,194.99,5.1277]
[1739678879576,0.03372043,195.0,194.97,9.18595716]
[1739678879778,0.03372043,195.0,194.97,14.31385716]
[1739678879974,0.03372043,195.0,194.97,9.18595716]
[1739678880580,0.03372043,195.0,194.97,0.0335485]
[1739678881578,0.03372043,195.0,194.97,9.18595716]
[1739678882079,0.03372043,195.0,194.98,5.1279]
[1739678882276,0.03372043,195.0,194.97,9.18595716]
[1739678883181,0.03372043,195.0,194.97,0.0335485]
[1739678884187,0.03372043,195.0,194.97,5.1617485]
[1739678884982,0.03372043,195.0,194.97,9.18595716]
[1739678885685,0.03372043,195.0,194.97,0.0335485]
[1739678887079,0.03372043,195.0,194.97,5.1617485]
[1739678887685,0.03372043,195.0,194.97,0.0335485]
[1739678887984,5.16132043,195.0,194.97,0.0335485]
[1739678889387,5.16132043,195.0,194.97,9.18595716]
[1739678889586,5.16132043,195.0,194.97,14.31415716]
[1739678889884,0.03372043,195.0,194.97,9.18595716]
[1739678891087,5.16122043,195.0,194.97,9.18595716]
[1739678892286,5.16122043,195.0,194.97,0.0335485]
[1739678893387,0.03372043,195.0,194.97,0.0335485]
[1739678894587,5.16122043,195.0,194.97,0.0335485]
[1739678895890,5.1277,194.99,194.97,0.0335485]
[1739678897090,0.03372043,195.0,194.97,0.0335485]
[1739678897992,5.16142043,195.0,194.97,0.0335485]
[1739678898291,0.03372043,195.0,194.97,0.0335485]
[1739678898683,5.1279,194.99,194.97,0.0335485]
[1739678899293,5.16122043,195.0,194.97,0.0335485]
[1739678899794,0.03372043,195.0,194.97,0.0335485]
[1739678899993,5.1277,194.99,194.97,0.0335485]
[1739678901893,5.1279,194.98,194.97,0.0335485]
[1739678902589,0.03372043,195.0,194.97,0.0335485]
[1739678902796,5.1277,194.99,194.97,0.0335485]
[1739678903495,0.03372043,195.0,194.97,0.0335485]
[1739678903697,5.16132043,195.0,194.97,0.0335485]
[1739678903995,0.03372043,195.0,194.97,0.0335485]
[1739678905096,0.03372043,195.0,194.97,5.1617485]
[1739678905993,0.03372043,195.0,194.97,0.0335485]
[1739678906195,0.03372043,195.0,194.98,5.1278]
[1739678907193,0.03372043,195.0,194.97,5.1617485]
[1739678907595,0.03372043,195.0,194.97,0.0335485]
[1739678907796,5.1277,194.99,194.97,0.0335485]
[1739678907995,0.03372043,195.0,194.97,0.0335485]
[1739678908803,9.15240866,194.99,194.97,0.0335485]
[1739678909805,5.1279,194.98,194.97,0.0335485]
[1739678910403,5.1291,194.94,194.89,14.28250866]
[1739678910604,9.15240866,194.95,194.89,9.15240866]
[1739678911494,0.03802415,194.94,194.91,9.15240866]
[1739678913205,0.03802415,194.94,194.93,9.15240866]
[1739678914106,0.03802415,194.94,194.93,14.28160866]
[1739678915607,14.27960866,195.01,194.93,9.15240866]
[1739678915801,202.15240866,195.03,194.98,9.15240866]
[1739678916008,193.0,195.03,194.98,9.15240866]
[1739678916207,193.0,195.03,194.99,5.1276]
[1739678916404,5.1265,195.04,194.99,5.1276]
[1739678916712,9.15240866,195.03,194.99,5.1276]
[1739678916913,9.15240866,195.03,195.0,0.03324044]
[1739678916914,9.18904568,195.03,195.0,0.03324044]
[1739678917510,14.31564568,195.03,195.0,0.03324044]
[1739678919811,9.18904568,195.03,195.0,0.03324044]
[1739678920012,5.1269,195.02,195.0,0.03324044]
[1739678923016,5.1271,195.01,195.0,0.03324044]
[1739678923212,14.27950866,195.01,195.0,0.03324044]
[1739678929413,9.15240866,195.01,194.9,9.15240866]
[1739678929616,9.15240866,194.96,194.9,9.15240866]
[1739678930113,5.129,194.94,194.9,9.15240866]
[1739678930514,0.03554541,194.94,194.9,9.1884505]
[1739678930715,0.03554541,194.94,194.91,5.1295]
[1739678933415,0.03554541,194.94,194.9,14.3184505]
[1739678934617,0.03554541,194.94,194.9,9.1884505]
[1739678934810,9.18795407,194.94,194.9,0.03604184]
[1739678935422,5.1298,194.91,194.9,0.03604184]
[1739678949631,5.1298,194.91,194.9,4.184e-05]
[1739678952625,198.1298,194.91,194.9,4.184e-05]
[1739678956533,5.1314,194.85,194.8,10.67130866]
[1739678956835,5.1314,194.85,194.8,15.80400866]
[1739678957733,0.03428279,194.84,194.81,0.03903259]
[1739678958533,0.03428279,194.84,194.82,9.15240866]
[1739678958932,0.03428279,194.84,194.83,5.1319]
[1739678963128,14.28270866,194.9,194.85,5.1311]
[1739678963328,9.15240866,194.9,194.85,5.1311]
[1739678963736,14.28250866,194.9,194.85,5.1311]
[1739678964434,0.03412092,194.89,194.86,0.03456194]
[1739678965539,0.03412092,194.89,194.86,14.3180706]
[1739678966736,0.03412092,194.89,194.86,9.1869706]
[1739678967237,5.16442092,194.89,194.86,9.1869706]
[1739678967736,0.03412092,194.89,194.86,9.1869706]
[1739678968731,0.03412092,194.89,194.86,14.3178706]
[1739678977649,0.03412092,194.89,194.88,5.1306]
[1739678977846,0.03412092,194.89,194.88,14.28300866]
[1739678978536,247.34725323,194.96,194.88,14.28300866]
[1739678978537,247.34725323,194.96,194.89,5.1301]
[1739678978738,247.34725323,194.96,194.9,9.15240866]
[1739678978935,5.1289,194.95,194.9,14.28240866]
[1739678979139,5.1289,194.95,194.9,9.15240866]
[1739678979344,247.34725323,194.96,194.9,9.15240866]
[1739678979536,247.34725323,194.96,194.91,5.1298]
[1739678979537,252.47575323,194.96,194.91,5.1298]
[1739678979741,0.03751559,194.95,194.91,0.03832482]
[1739678980042,0.03751559,194.95,194.92,5.1294]
[1739678981446,0.03751559,194.95,194.92,14.28180866]
[1739678986948,0.03751559,194.95,194.94,5.129]
[1739678987246,0.03751559,194.95,194.94,14.28140866]
[1739678994352,0.03751559,194.95,194.94,9.15240866]
[1739679000053,0.03751559,194.95,194.94,14.28140866]
[1739679008768,5.1268,195.03,194.94,9.15240866]
[1739679008970,9.15240866,195.04,194.98,14.28010866]
[1739679009372,5.1271,195.02,194.98,14.28010866]
[1739679009970,9.15240866,195.04,194.98,9.1892751]
[1739679010766,5.1275,195.0,194.98,9.1892751]
[1739679011071,9.15240866,195.04,194.98,9.1892751]
[1739679012467,5.1272,195.01,194.98,9.1892751]
[1739679013770,9.15240866,195.02,194.98,0.03686644]
[1739679014275,5.1274,195.01,194.98,0.03686644]
[1739679017480,5.1275,195.0,194.98,0.03686644]
[1739679017877,9.15240866,195.02,194.98,0.03686644]
[1739679019573,5.1276,195.0,194.98,0.03686644]
[1739679020283,5.1277,194.99,194.98,0.03686644]
[1739679033696,9.15240866,195.02,194.98,0.03686644]
[1739679034495,9.15240866,195.04,194.98,0.03686644]
[1739679034694,9.15240866,195.04,194.98,14.3171751]
[1739679035395,5.1269,195.02,194.98,9.1892751]
[1739679035592,9.15240866,195.04,194.98,9.1892751]
[1739679035792,9.15240866,195.02,194.98,0.03686644]
[1739679036997,5.1272,195.01,194.98,0.03686644]
[1739679037893,14.27930866,195.02,194.98,0.03686644]
[1739679039801,5.1275,195.0,194.98,0.03686644]
[1739679040095,9.15240866,195.02,194.98,0.03686644]
[1739679042894,5.1277,194.99,194.98,0.03686644]
[1739679057316,5.1269,195.02,194.98,0.03686644]
[1739679058520,5.1272,195.01,194.98,0.03686644]
[1739679060726,5.1275,195.0,194.98,0.03686644]
[1739679061025,9.15240866,195.02,194.98,0.03686644]
[1739679061827,5.1277,194.99,194.98,0.03686644]
[1739679064334,9.15240866,195.02,194.98,0.03686644]
[1739679064632,5.1272,195.01,194.98,0.03686644]
[1739679064834,9.15240866,195.02,194.98,0.03686644]
[1739679065030,5.1272,195.01,194.98,0.03686644]
[1739679066535,5.1274,195.0,194.98,0.03686644]
[1739679069133,5.1277,194.99,194.98,0.03686644]
[1739679081544,9.15240866,195.02,194.98,0.03686644]
[1739679081746,5.1272,195.01,194.98,0.03686644]
[1739679081945,5.1272,195.01,194.98,9.1892751]
[1739679082145,5.1276,195.0,194.98,0.03686644]
[1739679084844,5.1277,194.99,194.98,0.03686644]
[1739679087452,5.1289,194.95,194.92,9.15240866]
[1739679088250,5.1291,194.94,194.9,9.15240866]
[1739679088453,9.15240866,194.94,194.88,9.15240866]
[1739679088651,9.1892751,194.94,194.9,0.032876]
[1739679088855,5.1295,194.93,194.9,0.032876]
[1739679090553,5.1295,194.92,194.9,0.032876]
[1739679090753,9.1892751,194.94,194.9,0.032876]
[1739679091454,5.1296,194.92,194.9,0.032876]
[1739679092653,0.03686644,194.94,194.9,9.18528466]
[1739679092854,0.03686644,194.94,194.92,9.15240866]
[1739679097651,0.03686644,194.94,194.92,14.28170866]
[1739679098451,0.03686644,194.94,194.92,9.15240866]
[1739679102061,5.16586644,194.94,194.92,9.15240866]
[1739679102361,0.03686644,194.94,194.92,9.15240866]
[1739679104264,0.03686644,194.94,194.92,14.28170866]
[1739679105064,0.03686644,194.94,194.92,9.15240866]
[1739679108667,0.03686644,194.94,194.93,5.1292]
[1739679108869,193.0,195.02,194.92,9.15240866]
[1739679109062,9.15240866,195.04,194.97,9.15240866]
[1739679109257,5.1271,195.02,194.97,9.15240866]
[1739679109462,9.15240866,195.04,194.97,9.15240866]
[1739679110065,9.15240866,195.04,194.99,0.03380857]
[1739679111669,5.1271,195.02,194.99,0.03380857]
[1739679112370,5.1272,195.01,194.99,0.03380857]
[1739679115074,5.1274,195.0,194.99,0.03380857]
[1739679116076,9.15240866,195.04,194.99,0.03380857]
[1739679116274,5.1272,195.01,194.99,0.03380857]
[1739679117768,9.15240866,195.04,194.99,0.03380857]
[1739679121380,5.1273,195.01,194.99,0.03380857]
[1739679123375,5.1274,195.0,194.99,0.03380857]
[1739679124776,5.1267,195.03,194.99,9.18621723]
[1739679125183,1.5307,195.05,194.99,9.18621723]
[1739679125680,9.15240866,195.04,194.99,0.03380857]
[1739679125885,9.15240866,195.02,194.99,0.03380857]
[1739679126484,5.1274,195.0,194.99,0.03380857]
[1739679128673,9.15240866,195.04,194.99,0.03380857]
[1739679128888,9.15240866,195.04,194.99,9.18621723]
[1739679129783,5.1269,195.03,194.99,9.18621723]
[1739679131779,5.127,195.02,194.99,9.18621723]
[1739679132694,5.1272,195.01,194.99,9.18621723]
[1739679132883,5.1272,195.01,194.99,0.03380857]
[1739679135479,9.15240866,195.04,194.99,0.03380857]
[1739679136184,5.1274,195.01,194.99,0.03380857]
[1739679139689,9.15240866,195.04,194.99,0.03380857]
[1739679140286,5.1274,195.0,194.99,0.03380857]
[1739679158406,5.1271,195.02,194.99,0.03380857]
[1739679158601,9.15240866,195.04,194.99,0.03380857]
[1739679160311,5.1271,195.02,194.99,0.03380857]
[1739679160914,5.1265,195.04,194.99,9.18621723]
[1739679161106,5.1265,195.04,194.99,14.31381723]
[1739679161307,9.15240866,195.06,194.99,9.18621723]
[1739679162007,5.1266,195.03,194.99,9.18621723]
[1739679165110,5.1269,195.02,194.99,9.18621723]
[1739679166013,5.1269,195.02,194.99,0.03380857]
[1739679172519,9.15240866,195.06,194.99,9.18621723]
[1739679172817,21.39612549,195.08,195.01,9.15240866]
[1739679173016,5.1256,195.07,195.01,9.15240866]
[1739679174720,9.15240866,195.08,195.01,9.15240866]
[1739679174920,5.1259,195.06,195.01,9.15240866]
[1739679176918,9.15240866,195.08,195.01,9.15240866]
[1739679177316,9.15240866,195.06,195.01,9.15240866]
[1739679177720,9.15240866,195.06,195.02,0.03801145]
[1739679178124,5.1267,195.03,195.02,0.03801145]
[1739679180525,5.1267,195.03,195.02,1.145e-05]
[1739679196435,6.6807,195.03,195.02,1.145e-05]
[1739679197539,9.7342,195.03,195.02,1.145e-05]
[1739679198041,8.2299,195.03,195.02,1.145e-05]
[1739679199945,5.1267,195.03,195.02,1.145e-05]
[1739679205754,9.18487826,195.04,195.02,1.145e-05]
[1739679205961,0.0324696,195.04,195.02,1.145e-05]
[1739679207158,5.1266,195.03,195.02,1.145e-05]
[1739679211761,0.0324696,195.04,195.02,1.145e-05]
[1739679211961,5.1588696,195.04,195.02,1.145e-05]
[1739679212157,0.0324696,195.04,195.02,1.145e-05]
[1739679214162,0.0324696,195.04,195.03,9.15240866]
[1739679245585,0.0324696,195.04,195.02,1.145e-05]
[1739679249987,5.1588696,195.04,195.02,1.145e-05]
[1739679260496,0.0324696,195.04,195.02,1.145e-05]
[1739679260692,0.0324696,195.04,195.03,9.15240866]
[1739679296017,0.0324696,195.04,195.02,1.145e-05]
[1739679303227,0.0324696,195.04,195.03,14.27900866]
[1739679304217,0.0324696,195.04,195.03,9.15240866]
[1739679306125,0.0324696,195.04,195.03,14.27900866]
[1739679307834,0.0324696,195.04,195.03,9.15240866]
[1739679309032,0.0324696,195.04,195.03,14.27900866]
[1739679309237,0.0324696,195.04,195.03,9.15240866]
[1739679309930,0.0324696,195.04,195.03,14.27900866]
[1739679320037,0.0324696,195.04,195.03,9.15240866]
[1739679321739,0.0324696,195.04,195.03,14.27900866]
[1739679324743,0.0324696,195.04,195.03,9.15240866]
[1739679326846,0.0324696,195.04,195.03,14.27900866]
[1739679331951,1.5942,195.13,195.03,9.15240866]
[1739679332151,36.87773777,195.14,195.1,9.15240866]
[1739679332450,5.1243,195.12,195.1,9.15240866]
[1739679333950,46.03014643,195.14,195.1,9.15240866]
[1739679334255,5.1245,195.11,195.1,9.15240866]
[1739679334448,46.03014643,195.14,195.1,9.15240866]
[1739679334648,5.1242,195.13,195.1,9.15240866]
[1739679334951,46.03014643,195.14,195.1,9.15240866]
[1739679335152,5.1242,195.12,195.1,9.15240866]
[1739679335746,46.03014643,195.14,195.1,9.15240866]
[1739679335952,5.1242,195.13,195.1,9.15240866]
[1739679337051,5.1243,195.12,195.1,9.15240866]
[1739679338753,5.124,195.13,195.1,9.15240866]
[1739679339151,36.66818777,195.14,195.1,9.15240866]
[1739679339351,5.1242,195.12,195.1,9.15240866]
[1739679339853,36.66818777,195.14,195.1,9.15240866]
[1739679340053,5.124,195.13,195.1,9.15240866]
[1739679340454,35.10008777,195.14,195.1,9.15240866]
[1739679340756,9.15240866,195.16,195.1,9.15240866]
[1739679343955,5.1242,195.13,195.1,9.15240866]
[1739679345753,9.15240866,195.16,195.1,9.15240866]
[1739679346652,5.1239,195.14,195.1,9.15240866]
[1739679347356,5.1242,195.13,195.1,9.15240866]
[1739679353962,9.15240866,195.16,195.1,9.15240866]
[1739679357061,5.1239,195.14,195.1,9.15240866]
[1739679359371,9.15240866,195.16,195.1,9.15240866]
[1739679359565,5.1241,195.13,195.1,9.15240866]
[1739679361774,5.1241,195.13,195.12,9.15240866]
[1739679362473,10.74320866,195.2,195.12,9.15240866]
[1739679362768,10.74320866,195.2,195.14,9.15240866]
[1739679362976,10.74320866,195.2,195.14,9.18994449]
[1739679363574,5.1226,195.19,195.14,9.18994449]
[1739679364077,10.74320866,195.2,195.14,9.18994449]
[1739679364375,15.86540866,195.2,195.14,9.18994449]
[1739679364576,10.74320866,195.2,195.14,9.18994449]
[1739679365671,9.15240866,195.2,195.14,9.18994449]
[1739679365977,9.15240866,195.22,195.16,9.15240866]
[1739679366374,9.15240866,195.22,195.17,0.03531075]
[1739679367075,5.122,195.21,195.17,0.03531075]
[1739679368272,5.1222,195.2,195.17,0.03531075]
[1739679369679,9.15240866,195.22,195.17,0.03531075]
[1739679369981,5.1225,195.19,195.17,0.03531075]
[1739679372179,9.15240866,195.22,195.17,0.03531075]
[1739679372380,5.1227,195.18,195.17,0.03531075]
[1739679372570,9.15240866,195.22,195.17,0.03531075]
[1739679372878,5.1222,195.2,195.17,0.03531075]
[1739679378581,9.15240866,195.22,195.17,0.03531075]
[1739679378782,5.1225,195.19,195.17,0.03531075]
[1739679379884,5.1227,195.18,195.17,0.03531075]
[1739679380280,14.27510866,195.18,195.17,0.03531075]
[1739679381179,5.1242,195.12,195.08,9.15240866]
[1739679381883,9.15240866,195.09,195.04,9.15240866]